bitfinex-derivatives/quotes_ETHF0:USTF0_20250816
["timestamp","ask_amount","ask_price","bid_price","bid_amount"]
[1755353020504,2.07747462,4399.0,4398.9,21.032]
[1755353020700,0.7096,4398.3,4398.2,0.8545]
[1755353021006,1.7701,4398.3,4398.2,22.1502]
[1755353021302,1.7701,4398.3,4398.2,21.7379]
[1755353021509,0.8045,4398.2,4397.8,3.2078]
[1755353021806,3.2078,4398.7,4397.9,21.2947]
[1755353021807,1.7701,4398.0,4397.9,21.2947]
[1755353022505,1.7701,4398.0,4397.9,22.7747]
[1755353022703,1.5141,4398.0,4397.9,22.7747]
[1755353023707,1.7701,4398.0,4397.9,22.4083]
[1755353023903,1.7701,4398.0,4397.9,22.1492]
[1755353024411,1.7701,4398.0,4397.9,22.7747]
[1755353024607,1.5141,4398.0,4397.9,22.7747]
[1755353024801,1.0732,4398.0,4397.9,22.7747]
[1755353025811,0.4409,4398.3,4397.9,21.7313]
[1755353026011,0.10696007,4398.2,4398.1,0.7013]
[1755353026212,1.0732,4398.2,4398.1,1.7447]
[1755353026510,1.5141,4398.2,4398.1,1.7447]
[1755353027013,1.6210661,4398.2,4398.1,1.7447]
[1755353027206,1.5141,4398.2,4398.1,1.7447]
[1755353029112,1.7775,4398.2,4398.1,1.7447]
[1755353029310,1.8844946,4398.2,4398.1,1.7447]
[1755353029507,1.7775,4398.2,4398.1,1.7447]
[1755353029904,3.4848,4398.7,4398.6,0.2678]
[1755353030105,4.38339855,4398.7,4398.6,1.7688]
[1755353030606,4.81059855,4398.7,4398.6,1.7688]
[1755353031609,4.00969855,4398.7,4398.6,1.7688]
[1755353031908,3.4571,4399.2,4399.1,1.7688]
[1755353032110,3.2078,4399.8,4399.1,22.1417]
[1755353032414,1.0686,4399.5,4399.4,0.6896]
[1755353032712,1.6028018,4399.5,4399.4,22.7968]
[1755353033015,1.8662018,4399.5,4399.4,21.028]
[1755353033209,2.06674655,4399.5,4398.9,0.3976]
[1755353033407,1.7592,4399.2,4399.1,21.027]
[1755353033615,1.8662018,4399.2,4399.1,21.027]
[1755353033907,1.8662018,4399.2,4398.5,0.2575]
[1755353034110,0.6949,4398.6,4398.5,0.6887]
[1755353034313,1.7592,4398.6,4398.5,21.7157]
[1755353034702,1.7592,4398.6,4398.5,22.1398]
[1755353034906,1.7592,4398.6,4398.5,22.5374]
[1755353035410,1.7592,4398.6,4398.5,22.7958]
[1755353035613,1.4958,4398.6,4398.5,22.7958]
[1755353036112,1.7592,4398.6,4398.5,21.7157]
[1755353036409,1.60287491,4398.6,4398.1,3.6319]
[1755353036711,1.4958,4397.9,4397.8,1.7688]
[1755353036915,1.4958,4397.9,4397.8,22.7928]
[1755353037309,1.7592,4397.9,4397.8,22.7928]
[1755353037615,0.9583,4397.9,4397.6,0.2575]
[1755353037913,1.7592,4397.7,4397.6,0.4209]
[1755353038114,1.7592,4397.7,4397.6,22.1368]
[1755353038310,0.4272,4398.2,4397.6,21.1874]
[1755353038512,1.0686,4397.7,4397.6,22.7928]
[1755353038710,1.60294336,4397.7,4397.6,22.7928]
[1755353040914,1.86634336,4397.7,4397.6,21.1874]
[1755353041318,1.86634336,4397.7,4397.6,21.7127]
[1755353041513,1.86634336,4397.7,4397.6,22.5344]
[1755353041913,1.86634336,4397.7,4397.6,21.7127]
[1755353042117,1.86634336,4397.7,4397.6,21.1874]
[1755353042315,1.8671068,4397.7,4397.6,21.024]
[1755353042616,1.7592,4397.7,4397.6,21.024]
[1755353042817,1.86709398,4397.7,4397.6,21.024]
[1755353043018,1.86709398,4397.7,4397.6,22.5344]
[1755353043213,1.86709398,4397.7,4397.6,22.7928]
[1755353043515,0.10789398,4397.7,4397.6,22.7928]
[1755353043713,4.0087,4398.3,4397.6,21.7136]
[1755353043912,0.10786246,4398.2,4398.1,1.7688]
[1755353044110,3.2078,4398.3,4398.2,1.7688]
[1755353044818,4.7036,4398.3,4398.2,1.7688]
[1755353045017,4.967,4398.3,4398.1,21.023]
[1755353045218,1.0643,4398.2,4398.1,21.023]
[1755353045415,1.7592,4398.2,4398.1,21.1864]
[1755353045719,1.7592,4398.2,4398.1,21.7117]
[1755353045919,1.7592,4398.2,4398.1,22.1358]
[1755353046320,1.7592,4398.2,4398.1,22.1093]
[1755353046518,1.7592,4398.2,4398.1,21.4439]
[1755353046719,1.7592,4398.2,4398.1,22.7918]
[1755353046915,3.2078,4398.3,4398.1,22.7918]
[1755353047121,3.2078,4398.3,4398.2,1.7688]
[1755353051324,0.8009,4398.8,4398.2,0.6896]
[1755353051519,1.4958,4398.8,4398.7,1.7688]
[1755353051725,1.60369551,4398.8,4398.7,22.7878]
[1755353051924,1.17649551,4398.8,4398.7,22.7878]
[1755353052128,0.10789551,4398.8,4398.7,22.7878]
[1755353052430,1.17649551,4398.8,4398.7,22.7878]
[1755353052630,1.86709551,4398.8,4398.7,22.3902]
[1755353052922,1.86710324,4398.8,4398.7,22.7878]
[1755353053127,1.7592,4398.8,4398.7,22.7878]
[1755353053520,3.2078,4399.6,4398.8,0.3976]
[1755353053727,1.09880818,4399.5,4399.4,1.7688]
[1755353053923,0.10789459,4399.5,4399.4,22.7858]
[1755353054128,1.0686,4399.6,4399.5,1.7688]
[1755353054328,1.17648313,4399.6,4399.5,1.7688]
[1755353054527,3.5815,4400.1,4399.5,1.7688]
[1755353054830,1.86704384,4400.0,4399.9,1.7688]
[1755353055030,1.86704384,4400.0,4399.9,22.7848]
[1755353055431,0.80274384,4400.0,4399.9,22.7848]
[1755353055630,1.17639942,4400.0,4399.9,22.7848]
[1755353055927,0.10779942,4400.0,4399.9,22.7848]
[1755353056132,3.2078,4400.1,4399.9,22.7848]
[1755353056328,4.2764,4400.1,4400.0,1.7688]
[1755353056631,1.7592,4400.0,4399.9,0.4209]
[1755353056829,1.86689472,4400.0,4399.9,22.1268]
[1755353057133,1.86689472,4400.0,4399.9,22.7828]
[1755353057433,1.7592,4400.0,4399.9,22.7828]
[1755353057928,1.86687543,4400.0,4399.9,22.3852]
[1755353058136,1.7592,4400.0,4399.9,22.3852]
[1755353058535,1.7592,4400.0,4399.9,22.7828]
[1755353059537,1.7592,4400.0,4399.9,21.4452]
[1755353061029,1.7592,4400.0,4399.9,22.1088]
[1755353061228,1.7592,4400.0,4399.9,22.7299]
[1755353061729,1.7592,4400.0,4399.9,22.1088]
[1755353061930,1.7592,4400.0,4399.9,21.4452]
[1755353062932,0.5057,4399.7,4399.6,0.2414]
[1755353063138,1.7091,4399.7,4399.6,21.008]
[1755353063333,1.7091,4399.7,4399.6,21.1798]
[1755353063531,1.7091,4399.7,4399.6,21.008]
[1755353065237,1.7091,4399.7,4399.6,22.7431]
[1755353065433,1.7091,4399.7,4399.6,22.3811]
[1755353065633,1.7091,4399.7,4399.6,21.008]
[1755353065836,1.81676034,4399.7,4399.6,21.008]
[1755353066335,0.3906,4399.3,4399.0,21.7165]
[1755353066532,0.8094,4399.3,4399.2,0.7095]
[1755353066735,1.0689,4399.3,4399.2,1.7351]
[1755353066940,1.7091,4399.3,4399.0,21.007]
[1755353067137,1.0308,4399.2,4399.0,21.007]
[1755353067335,1.7091,4399.1,4399.0,21.007]
[1755353068228,1.7091,4399.1,4399.0,22.7421]
[1755353068733,3.8861,4399.6,4399.5,0.7095]
[1755353069040,4.63394046,4399.6,4399.5,1.7351]
[1755353069250,5.02454046,4399.6,4399.5,1.7351]
[1755353069441,5.02454046,4399.6,4399.5,0.4132]
[1755353069942,5.02454046,4399.6,4399.5,1.114]
[1755353070138,5.02454046,4399.6,4399.5,1.476]
[1755353071042,5.02454046,4399.6,4399.5,1.7351]
[1755353071837,5.02454046,4399.6,4399.5,0.6918]
[1755353072135,0.7784,4399.5,4399.2,0.4222]
[1755353072339,0.61334046,4399.4,4399.3,0.2414]
[1755353072541,1.81674046,4399.4,4399.3,0.6918]
[1755353072742,1.81674046,4399.4,4399.3,1.7351]
[1755353074642,1.56434046,4399.4,4399.3,1.7351]
[1755353074939,1.81674046,4399.4,4399.3,1.7351]
[1755353075642,0.10764046,4399.4,4399.3,1.7351]
[1755353075845,0.10764046,4399.5,4399.3,0.7095]
[1755353076050,0.10764046,4399.4,4399.3,0.7095]
[1755353076245,0.10764046,4399.5,4399.3,0.7095]
[1755353076445,0.10764046,4399.4,4399.3,1.3731]
[1755353076652,0.10764046,4399.4,4399.3,0.7095]
[1755353076850,0.10764046,4399.4,4399.3,1.7351]
[1755353077148,1.17654046,4399.4,4399.3,1.7351]
[1755353077750,0.10764046,4399.4,4399.3,1.7351]
[1755353077946,0.10764046,4399.4,4399.3,0.7095]
[1755353078445,0.10764046,4399.5,4399.3,1.3129]
[1755353078751,3.2078,4399.6,4399.3,1.1317]
[1755353078752,0.11163716,4399.4,4399.3,1.1317]
[1755353079254,0.11163716,4399.4,4399.3,1.7351]
[1755353079444,3.2078,4399.6,4399.3,0.7095]
[1755353079645,3.2078,4399.6,4399.5,0.7095]
[1755353079846,3.31949421,4399.6,4399.5,22.7351]
[1755353081246,0.11169421,4399.6,4399.5,22.7351]
[1755353082252,0.11169421,4399.6,4399.5,25.9429]
[1755353082549,4.6645,4400.1,4400.0,1.7351]
[1755353082746,4.776258,4400.1,4400.0,22.7331]
[1755353083443,4.97636225,4400.1,4400.0,22.7331]
[1755353083849,4.776258,4400.1,4400.0,22.7331]
[1755353084051,1.568458,4400.1,4400.0,22.7331]
[1755353086452,1.568458,4400.1,4399.5,3.2078]
[1755353086453,1.3213,4399.4,4399.3,20.995]
[1755353086746,1.4567,4399.4,4399.3,22.7301]
[1755353086952,1.5684394,4399.4,4399.3,22.7301]
[1755353087154,1.8208394,4399.4,4399.3,22.109]
[1755353087350,1.8208394,4399.4,4399.3,21.6868]
[1755353087549,1.8208394,4399.4,4399.3,20.995]
[1755353087754,0.6783,4399.1,4399.0,20.994]
[1755353087953,0.1726,4398.7,4398.6,0.2414]
[1755353088153,1.8208394,4398.7,4398.6,21.4072]
[1755353088454,1.8208394,4398.7,4398.6,22.108]
[1755353089954,1.8208394,4398.7,4398.6,22.484]
[1755353090351,1.8208394,4398.7,4398.6,21.6858]
[1755353090752,1.8208394,4398.7,4398.6,20.994]
[1755353091558,1.20784478,4400.4,4399.1,0.45434]
[1755353091753,0.3913,4400.7,4400.2,1.6576]
[1755353091754,0.58653824,4400.3,4400.2,1.6576]
[1755353092051,0.6802,4400.3,4400.2,21.6877]
[1755353092251,1.7145,4400.3,4400.2,21.6877]
[1755353092654,1.4589,4400.3,4400.2,22.6496]
[1755353093055,0.2528,4400.3,4400.2,22.6496]
[1755353094460,1.0715,4400.3,4400.2,22.6496]
[1755353095556,0.6802,4400.3,4400.2,21.9789]
[1755353095757,0.6802,4400.3,4400.2,22.6496]
[1755353096257,1.4589,4400.3,4400.2,22.6496]
[1755353096462,1.0715,4400.3,4400.2,21.7043]
[1755353096762,1.7145,4400.3,4400.2,22.6496]
[1755353097460,1.0715,4400.7,4400.6,0.6957]
[1755353097664,1.4589,4400.7,4400.6,22.6486]
[1755353097862,3.2078,4400.8,4400.6,22.6486]
[1755353098064,3.2078,4400.8,4400.7,1.6576]
[1755353098359,1.4589,4401.4,4401.3,0.6957]
[1755353098560,1.7145,4401.4,4401.3,1.3664]
[1755353098758,1.7145,4401.4,4401.3,0.7123]
[1755353099361,1.7145,4401.4,4401.3,1.121]
[1755353099958,3.2078,4401.5,4401.2,20.989]
[1755353100265,1.7145,4401.3,4401.2,21.1672]
[1755353100465,1.7145,4401.3,4401.2,20.989]
[1755353100661,1.3232,4400.8,4400.7,0.5341]
[1755353100865,0.6802,4400.4,4400.3,0.7123]
[1755353101067,1.4589,4400.4,4400.3,22.6466]
[1755353101267,1.7145,4400.4,4400.3,22.6466]
[1755353101865,1.7145,4400.4,4400.3,22.11]
[1755353102268,1.7145,4400.4,4400.3,22.4012]
[1755353102467,1.7145,4400.4,4400.3,22.6466]
[1755353103766,1.7145,4400.4,4400.3,22.11]
[1755353104069,1.7145,4400.4,4400.3,22.6466]
[1755353104666,1.7145,4400.4,4400.3,22.11]
[1755353104861,1.0343,4400.3,4399.9,0.6707]
[1755353105065,1.7145,4400.0,4399.9,0.4402]
[1755353105267,1.7145,4400.0,4399.9,22.107]
[1755353105668,3.78505101,4400.0,4399.0,3.2078]
[1755353105864,1.4589,4398.8,4398.7,1.6576]
[1755353106168,1.4589,4398.8,4398.7,22.6436]
[1755353106475,0.6802,4398.8,4398.7,22.6436]
[1755353109771,1.0715,4398.8,4398.7,22.6436]
[1755353110469,1.7145,4398.8,4398.7,1.6576]
[1755353110668,1.7145,4398.8,4398.7,22.6436]
[1755353110961,1.4589,4398.8,4398.7,22.6436]
[1755353111973,1.7145,4398.8,4398.7,22.6436]
[1755353112369,1.7145,4398.8,4398.7,21.6716]
[1755353112570,1.7145,4398.8,4398.7,22.3524]
[1755353113277,1.7145,4398.8,4398.7,22.6436]
[1755353118667,1.7043,4398.8,4398.7,0.7123]
[1755353118877,1.0674,4398.3,4397.8,3.2078]
[1755353119073,1.7176,4398.1,4398.0,1.0824]
[1755353119373,1.7176,4398.1,4397.8,3.2078]
[1755353119573,0.6812,4398.1,4398.0,20.988]
[1755353119771,3.889,4398.1,4398.0,20.988]
[1755353119974,4.68,4398.1,4398.0,20.988]
[1755353120275,4.9254,4398.1,4398.0,20.988]
[1755353120477,4.5206,4398.1,4398.0,21.1584]
[1755353120669,4.9254,4398.1,4398.0,22.0704]
[1755353120871,4.9254,4398.1,4398.0,20.988]
[1755353121889,1.0364,4398.0,4397.6,20.987]
[1755353122072,3.4695,4398.1,4397.2,0.6518]
[1755353122073,1.7176,4397.7,4397.2,0.6518]
[1755353122281,1.4722,4397.1,4397.0,0.2602]
[1755353122475,1.7176,4397.1,4397.0,0.6812]
[1755353122773,0.6812,4396.9,4396.8,0.421]
[1755353122971,1.7176,4396.9,4396.7,20.987]
[1755353123171,3.2078,4397.4,4396.7,20.987]
[1755353123172,1.7176,4396.8,4396.7,20.987]
[1755353123473,1.7176,4396.8,4396.5,0.4012]
[1755353123474,1.7176,4396.6,4396.5,22.0704]
[1755353124880,1.7176,4396.6,4396.5,21.4186]
[1755353125080,1.7176,4396.6,4396.5,21.6692]
[1755353125275,4.9254,4396.6,4396.5,20.988]
[1755353125480,4.9254,4396.6,4396.1,0.39146229]
[1755353125680,0.6812,4396.3,4396.2,1.0824]
[1755353125976,1.7176,4396.3,4396.2,22.0734]
[1755353126577,1.7176,4396.3,4396.2,20.991]
[1755353126782,1.7176,4396.3,4396.2,21.412]
[1755353127283,1.7176,4396.3,4396.2,21.6722]
[1755353127681,1.7176,4396.3,4396.2,22.0734]
[1755353128186,1.7176,4396.3,4396.2,21.6722]
[1755353128777,1.0674,4396.3,4396.2,22.3625]
[1755353128982,4.68,4396.6,4396.5,0.6949]
[1755353129186,4.68,4396.6,4396.5,1.6358]
[1755353130686,4.2752,4396.6,4396.5,1.6358]
[1755353131280,4.68,4396.6,4396.5,1.6358]
[1755353133583,3.2078,4396.6,4396.5,1.6358]
[1755353133984,3.8447,4396.6,4396.5,1.6358]
[1755353134278,3.2078,4396.6,4396.5,1.6358]
[1755353134690,4.9254,4396.6,4396.5,0.4306]
[1755353134885,0.1688,4396.3,4396.2,21.8152]
[1755353135090,1.7176,4396.3,4396.2,22.3397]
[1755353135289,1.7176,4396.3,4396.2,22.6288]
[1755353136191,1.7176,4396.3,4396.2,1.6358]
[1755353137084,3.2078,4396.6,4396.5,0.4347]
[1755353137085,3.6273,4396.6,4396.5,0.4347]
[1755353137291,4.2938,4396.6,4396.5,1.6358]
[1755353137788,4.68,4396.6,4396.5,1.6358]
[1755353138091,4.2752,4396.6,4396.5,1.6358]
[1755353138791,4.68,4396.6,4396.5,1.6358]
[1755353139191,4.9254,4396.6,4396.5,1.6358]
[1755353139493,1.7176,4396.2,4396.1,21.09536229]
[1755353139991,1.7176,4396.2,4396.1,0.35296229]
[1755353140290,1.7176,4396.2,4396.1,1.18476229]
[1755353140794,1.7176,4396.2,4396.1,1.73816229]
[1755353141792,1.7176,4396.2,4396.1,1.18476229]
[1755353141992,1.7176,4396.2,4396.1,0.53296229]
[1755353142189,1.7176,4396.2,4396.1,1.18476229]
[1755353143490,1.7176,4396.2,4396.1,1.47386229]
[1755353144489,1.7176,4396.2,4396.1,0.78356229]
[1755353144697,1.7176,4396.2,4396.1,0.10236229]
[1755353146286,1.82334803,4396.2,4396.1,0.10236229]
[1755353146491,1.82334803,4396.2,4395.2,0.2891]
[1755353146492,1.0674,4395.1,4395.0,4.5324]
[1755353146796,1.7176,4395.1,4395.0,1.7258]
[1755353147696,1.4722,4395.1,4395.0,1.7258]
[1755353147996,3.2078,4395.6,4395.0,0.6949]
[1755353148294,1.4722,4395.4,4395.3,1.7258]
[1755353148493,1.82345087,4395.4,4395.3,1.7258]
[1755353151199,2.40701854,4395.4,4395.3,0.1704]
[1755353151395,1.56949868,4395.4,4394.5,24.1998]
[1755353151604,1.79085087,4395.3,4395.2,0.4216]
[1755353151795,1.79085087,4395.3,4395.2,1.6979]
[1755353152292,2.37449683,4395.3,4395.2,1.6979]
[1755353152498,2.37449683,4395.3,4395.2,0.685]
[1755353152799,1.34479683,4395.3,4394.9,0.3813]
[1755353153098,1.685,4395.1,4395.0,1.6979]
[1755353153298,1.79106173,4395.1,4395.0,1.6979]
[1755353153497,0.1,4397.2,4396.6,1.3531]
[1755353153696,1.43816235,4397.1,4397.0,0.6667]
[1755353153902,2.46786235,4397.1,4397.0,1.0663]
[1755353154096,1.43816235,4397.1,4396.6,0.2868]
[1755353154302,1.4247,4396.7,4396.6,0.9535]
[1755353154504,2.20756235,4396.7,4396.6,0.9535]
[1755353154893,2.20756235,4396.7,4396.6,1.5982]
[1755353155499,1.62366106,4396.7,4396.6,1.5982]
[1755353156198,0.85426106,4396.7,4396.6,1.5982]
[1755353156400,0.2417,4396.7,4396.6,1.5982]
[1755353159408,0.2417,4396.7,4396.3,21.013]
[1755353159409,4.2373,4396.8,4396.7,1.5982]
[1755353159712,3.2078,4396.8,4396.7,1.5982]
[1755353159911,0.1,4397.2,4397.1,1.5982]
[1755353160309,1.0297,4398.0,4397.1,1.5982]
[1755353160310,3.2078,4398.0,4397.9,0.6667]
[1755353160607,0.3952,4398.7,4398.6,1.4982]
[1755353160608,3.2078,4398.7,4398.6,1.4982]
[1755353164301,0.2603,4399.3,4398.6,0.9301]
[1755353164501,0.2436,4399.1,4399.0,0.4216]
[1755353164704,0.9156,4399.1,4399.0,1.0663]
[1755353164912,0.9156,4399.1,4399.0,1.2531]
[1755353165111,1.685,4399.1,4399.0,1.2531]
[1755353165300,0.6553,4398.4,4398.3,1.2348]
[1755353165501,0.6553,4398.4,4398.0,21.01]
[1755353165810,3.2078,4398.9,4398.0,21.01]
[1755353165811,1.4247,4398.1,4398.0,0.685]
[1755353166000,1.685,4398.1,4398.0,1.0663]
[1755353166404,1.685,4398.1,4398.0,0.685]
[1755353167609,1.4247,4397.5,4397.4,25.714]
[1755353167912,1.0295,4397.5,4397.4,25.714]
[1755353168110,0.7694,4397.9,4397.4,25.714]
[1755353168313,1.4247,4397.9,4397.8,1.4982]
[1755353168708,1.685,4397.9,4397.8,1.4982]
[1755353170702,1.685,4397.9,4397.8,1.0663]
[1755353171111,1.685,4397.9,4397.8,0.4216]
[1755353171307,1.685,4397.9,4397.8,0.174]
[1755353171509,0.6553,4397.6,4397.5,0.2634]
[1755353171706,1.685,4397.2,4397.1,0.174]
[1755353171903,1.685,4397.2,4397.0,20.99]
[1755353172108,1.685,4397.2,4397.1,0.174]
[1755353172409,4.8928,4397.2,4397.0,20.99]
[1755353172609,1.0295,4396.8,4396.7,1.0663]
[1755353172912,1.685,4396.8,4396.7,1.0663]
[1755353173709,1.685,4396.8,4396.7,1.2531]
[1755353174011,1.685,4396.8,4396.7,1.4982]
[1755353181334,1.685,4396.8,4396.0,3.5738]
[1755353181623,0.17683315,4398.0,4396.1,1.23026229]
[1755353181624,1.0803,4396.2,4396.1,1.23026229]
[1755353181816,1.4622,4396.2,4396.1,1.59626229]
[1755353182919,1.7096,4396.2,4396.1,1.59626229]
[1755353183116,1.4622,4396.2,4396.1,1.59626229]
[1755353183422,0.6448,4397.2,4396.7,0.8097]
[1755353183717,1.7096,4397.2,4397.1,1.4939]
[1755353185722,1.4622,4397.2,4397.1,1.4939]
[1755353186221,1.7096,4397.2,4397.1,1.2287]
[1755353186616,1.7096,4397.2,4397.1,1.0412]
[1755353187219,1.4622,4397.1,4397.0,0.419]
[1755353187413,1.4622,4397.1,4397.0,1.2287]
[1755353187414,1.7096,4397.1,4397.0,1.2287]
[1755353187922,1.7096,4397.1,4397.0,1.4939]
[1755353188719,1.7096,4397.1,4397.0,0.6752]
[1755353188920,1.7096,4397.1,4397.0,1.0412]
[1755353189322,1.7096,4397.1,4397.0,1.2287]
[1755353189921,1.7096,4397.1,4397.0,1.4939]
[1755353190726,3.2078,4397.3,4397.0,1.4939]
[1755353191022,3.2078,4397.3,4396.5,20.987]
[1755353191023,4.9174,4397.3,4397.2,1.4939]
[1755353191222,0.4227,4396.6,4396.5,21.772]
[1755353191425,1.7096,4396.6,4396.5,22.4809]
[1755353191921,1.7096,4396.6,4396.5,22.0282]
[1755353192228,1.7096,4396.6,4396.5,22.2157]
[1755353192725,1.7096,4396.6,4396.5,22.4809]
[1755353193824,1.7096,4396.6,4396.5,22.0282]
[1755353194129,1.7096,4396.6,4396.5,22.2157]
[1755353194621,1.7096,4396.3,4396.2,0.2562]
[1755353194827,1.7096,4396.3,4396.2,0.4245]
[1755353195019,1.7096,4396.3,4396.2,1.2287]
[1755353195220,1.7096,4396.3,4396.2,1.4939]
[1755353197931,0.3974,4396.6,4396.5,1.4939]
[1755353198122,0.6436,4396.6,4396.5,1.4939]
[1755353198322,0.92198501,4396.6,4396.5,1.4939]
[1755353198528,1.56408501,4396.6,4396.5,1.4939]
[1755353198826,1.56408501,4396.6,4396.1,0.72456229]
[1755353199125,0.6829,4395.3,4395.2,0.2562]
[1755353199326,1.7096,4395.3,4395.2,0.4245]
[1755353199625,0.6829,4395.0,4394.9,0.7905]
[1755353199828,0.6829,4395.0,4393.1,2.84437418]
[1755353199829,0.2474,4394.9,4394.0,0.8097]
[1755353200023,0.6829,4394.1,4394.0,1.0412]
[1755353200223,1.7096,4394.1,4394.0,0.4245]
[1755353200525,1.7096,4394.1,4394.0,1.4939]
[1755353201120,1.4622,4394.1,4394.0,1.4939]
[1755353201324,1.7096,4394.1,4394.0,1.4939]
[1755353201527,1.7096,4394.1,4394.0,1.0412]
[1755353202723,0.4227,4393.9,4393.8,0.2562]
[1755353202926,4.1381,4393.9,4393.8,0.6752]
[1755353203125,4.9174,4393.9,4393.8,1.0412]
[1755353203531,4.9174,4393.9,4393.8,1.2287]
[1755353204620,4.9174,4393.9,4393.8,1.4939]
[1755353204828,4.67,4393.9,4393.8,1.4939]
[1755353205128,4.2881,4393.9,4393.8,1.4939]
[1755353205331,4.67,4393.9,4393.8,1.4939]
[1755353205526,4.9174,4393.9,4393.8,1.4939]
[1755353206129,0.6448,4393.8,4392.8,0.4437]
[1755353206330,0.6448,4393.8,4392.7,3.2078]
[1755353206331,0.6829,4393.0,4392.9,0.6842]
[1755353206632,1.7096,4393.0,4392.9,1.4939]
[1755353206829,1.7096,4393.0,4392.9,0.419]
[1755353207237,1.7096,4393.0,4392.9,0.785]
[1755353207442,1.0267,4392.9,4392.7,0.2562]
[1755353207642,4.9174,4392.8,4392.7,0.6752]
[1755353207846,4.9174,4392.8,4392.7,1.0412]
[1755353208142,0.6829,4392.6,4392.5,0.7905]
[1755353208346,1.7096,4392.6,4392.5,0.6752]
[1755353208537,1.7096,4392.6,4392.5,1.0412]
[1755353208844,1.7096,4392.6,4392.5,0.6752]
[1755353209148,1.7096,4392.6,4392.5,1.06]
[1755353209642,1.7096,4392.6,4392.5,1.247]
[1755353209841,1.7096,4392.6,4391.9,0.3848]
[1755353209842,0.3684,4392.5,4391.9,0.3848]
[1755353210147,1.4192,4392.7,4392.6,1.4992]
[1755353210543,1.6711,4392.7,4392.6,1.4992]
[1755353212344,0.2664,4392.0,4391.9,1.4992]
[1755353212546,1.0314,4392.0,4391.9,1.4992]
[1755353212746,1.4192,4392.0,4391.9,1.4992]
[1755353213346,1.6711,4392.0,4391.9,1.25]
[1755353213534,1.6711,4392.0,4391.9,1.063]
[1755353214542,1.6711,4392.0,4391.9,1.4992]
[1755353214835,1.0508,4392.0,4391.3,0.6409]
[1755353215038,1.2833,4391.9,4391.8,0.167]
[1755353215242,1.2833,4391.9,4391.8,1.063]
[1755353215243,4.4911,4391.9,4391.8,1.063]
[1755353215445,3.2078,4392.4,4391.9,0.4431]
[1755353215652,4.627,4392.4,4392.3,1.4992]
[1755353215846,4.8789,4392.4,4391.2,3.2078]
[1755353216150,1.0081,4391.8,4391.3,0.5718]
[1755353216451,0.2664,4391.4,4391.3,1.4992]
[1755353216753,1.4192,4391.7,4391.6,0.6713]
[1755353216945,1.4192,4391.7,4391.6,1.4992]
[1755353217146,1.0314,4391.7,4391.6,1.4992]
[1755353217746,1.4192,4391.7,4391.6,1.4992]
[1755353217948,1.0314,4391.7,4391.6,1.4992]
[1755353218145,3.2078,4391.9,4391.6,0.6713]
[1755353218345,3.2078,4391.9,4390.9,21.45519]
[1755353218346,3.2078,4391.9,4391.8,0.6713]
[1755353218654,3.8426,4391.9,4391.8,1.4992]
[1755353218854,4.0035,4391.9,4391.8,1.4992]
[1755353219149,4.2392,4391.9,4391.8,1.4992]
[1755353219341,4.8789,4391.9,4391.8,1.063]
[1755353219542,0.663,4391.6,4391.5,0.4231]
[1755353219743,1.6711,4391.6,4391.5,1.063]
[1755353219948,1.6711,4391.6,4391.5,1.4992]
[1755353219949,1.4192,4391.6,4391.5,1.4992]
[1755353220255,3.5762,4392.4,4391.8,0.6713]
[1755353220551,4.8789,4392.4,4392.3,1.3122]
[1755353220748,4.8789,4392.4,4392.3,0.167]
[1755353220953,0.3966,4392.1,4392.0,0.2561]
[1755353221153,0.3878,4391.7,4391.3,0.2561]
[1755353221348,1.4192,4391.4,4391.3,1.4992]
[1755353221547,0.2664,4390.7,4390.6,0.821]
[1755353221750,1.4192,4390.7,4390.5,3.2078]
[1755353221952,1.6711,4390.6,4390.5,3.2078]
[1755353222153,1.6711,4390.6,4390.5,3.886]
[1755353222350,1.6711,4390.6,4390.5,3.2078]
[1755353222653,0.663,4390.2,4390.1,0.8069]
[1755353222956,1.6711,4390.2,4390.1,1.063]
[1755353223853,1.4192,4390.2,4390.1,1.4992]
[1755353224358,1.6711,4390.2,4390.1,1.25]
[1755353224556,0.663,4390.2,4390.1,0.167]
[1755353224858,0.663,4390.2,4390.1,1.063]
[1755353225058,0.663,4390.2,4390.1,1.4992]
[1755353225258,1.4192,4390.2,4390.1,1.4992]
[1755353225559,1.6711,4390.2,4390.1,1.4992]
[1755353225758,1.6711,4390.2,4390.1,1.063]
[1755353226155,3.2078,4390.7,4390.1,1.063]
[1755353226362,0.7957,4390.9,4390.8,0.6713]
[1755353226563,1.0314,4391.4,4391.3,0.4221]
[1755353226757,1.0508,4390.5,4390.4,1.4992]
[1755353226952,1.6711,4390.4,4390.3,0.167]
[1755353227461,0.2519,4390.8,4390.3,1.4992]
[1755353227657,1.6711,4390.5,4390.4,0.6782]
[1755353227855,1.6711,4390.5,4390.4,1.4992]
[1755353228056,1.6711,4390.5,4390.4,1.063]
[1755353228255,3.2078,4391.0,4389.8,4.0661]
[1755353228256,1.0314,4389.9,4389.8,4.0661]
[1755353228459,1.4192,4389.9,4389.8,4.4509]
[1755353228657,0.7562,4390.3,4389.9,0.5718]
[1755353228854,1.4192,4390.3,4390.2,1.3122]
[1755353229165,1.4192,4390.3,4390.2,1.4992]
[1755353229958,1.6711,4390.3,4390.2,1.4992]
[1755353230863,1.0314,4390.3,4390.2,1.4992]